bitfinex-derivatives/quotes_ETHF0:USTF0_20251229
["timestamp","ask_amount","ask_price","bid_price","bid_amount"]
[1767033320889,1.35312204,2939.2,2937.9,1.35014501]
[1767033321688,0.00297703,2939.2,2938.1,1.35014501]
[1767033322805,1.35014501,2939.1,2937.6,0.17038]
[1767033322994,1.35014501,2939.1,2937.7,1.35014501]
[1767033323195,1.35014501,2939.1,2937.6,0.17038]
[1767033323196,0.00297703,2939.2,2937.6,0.17038]
[1767033323403,1.35014501,2938.8,2937.6,0.17038]
[1767033324997,1.35014501,2938.8,2937.3,1.35014501]
[1767033325397,1.35014501,2938.8,2937.0,0.0051063]
[1767033325398,1.35014501,2938.4,2937.0,0.1755263]
[1767033325798,1.35014501,2938.4,2937.1,1.35014501]
[1767033325996,1.35014501,2938.6,2937.1,1.35014501]
[1767033327701,0.17032,2938.7,2937.3,1.35014501]
[1767033332806,0.17032,2938.7,2937.5,1.35014501]
[1767033334199,0.17032,2938.7,2937.3,1.35014501]
[1767033336009,0.17032,2938.7,2937.5,1.35014501]
[1767033336410,0.00297703,2939.2,2937.7,1.35014501]
[1767033336600,0.00297703,2939.2,2937.9,1.35014501]
[1767033337112,1.35014501,2939.1,2937.7,1.35014501]
[1767033338107,1.35014501,2938.5,2937.3,0.1704]
[1767033339106,1.35014501,2938.5,2937.1,1.35014501]
[1767033339308,1.35014501,2938.3,2937.0,0.0051063]
[1767033339510,1.35014501,2938.5,2937.0,0.0051063]
[1767033339909,1.35014501,2938.5,2937.1,1.35014501]
[1767033340606,1.52046501,2938.7,2937.3,1.35014501]
[1767033342215,0.17032,2938.7,2937.5,1.35014501]
[1767033342416,0.17032,2938.7,2937.7,1.35014501]
[1767033342620,1.52046501,2938.7,2937.3,1.35014501]
[1767033347634,1.35014501,2938.4,2937.0,1.35525131]
[1767033348126,1.52046501,2938.7,2937.0,1.35525131]
[1767033348829,0.17032,2938.7,2937.5,1.35014501]
[1767033351836,1.35014501,2938.6,2937.0,0.1755263]
[1767033352032,1.35014501,2938.6,2937.2,1.35014501]
[1767033352537,1.35014501,2938.0,2937.0,0.0051063]
[1767033352728,1.35014501,2938.2,2937.0,0.0051063]
[1767033352929,1.35014501,2938.4,2937.0,1.35525131]
[1767033353330,0.17034,2938.5,2937.2,1.35014501]
[1767033354637,0.17034,2938.5,2937.4,1.35014501]
[1767033355934,0.17034,2938.5,2937.2,1.35014501]
[1767033359127,0.17034,2938.5,2937.0,0.0051063]
[1767033359840,1.35014501,2938.3,2937.0,0.0051063]
[1767033360437,0.17034,2938.5,2937.2,1.35014501]
[1767033362538,0.17034,2938.5,2937.0,0.0051063]
[1767033362732,0.17034,2938.5,2937.1,1.35014501]
[1767033364736,0.17034,2938.5,2937.4,1.35014501]
[1767033365740,0.17034,2938.5,2937.2,1.35014501]
[1767033366535,0.17034,2938.5,2937.0,1.35525131]
[1767033366840,1.35014501,2938.3,2937.0,1.35525131]
[1767033369340,1.35014501,2939.0,2936.9,4.26744891]
[1767033369537,1.35014501,2937.1,2936.5,0.00314903]
[1767033369745,1.35456494,2937.1,2936.5,0.00314903]
[1767033370047,0.00441993,2937.1,2935.9,1.35014501]
[1767033370244,0.00441993,2937.1,2936.1,1.35014501]
[1767033370446,0.0051063,2936.9,2936.3,0.0051063]
[1767033370845,0.0051063,2936.9,2936.3,0.00927342]
[1767033371441,0.00441993,2937.1,2936.3,0.00927342]
[1767033374141,1.35014501,2937.0,2936.3,0.00927342]
[1767033374738,1.35014501,2937.0,2936.3,0.00517925]
[1767033375938,0.00409417,2936.9,2936.3,0.00517925]
[1767033379548,0.17036,2938.1,2936.3,0.00517925]
[1767033379854,0.17034,2938.5,2936.4,0.17045]
[1767033380545,0.17446653,2938.5,2936.4,0.17045]
[1767033381354,0.17034,2938.4,2936.4,0.17045]
[1767033385253,0.17035,2938.3,2936.4,0.17045]
[1767033392555,0.17035,2938.3,2936.3,0.00517925]
[1767033393455,0.17035,2938.3,2936.6,0.17044]
[1767033406478,0.17036,2938.1,2936.3,0.00517925]
[1767033406678,1.35027071,2937.8,2936.3,0.00517925]
[1767033406979,0.17036,2938.1,2936.3,0.00517925]
[1767033409479,0.00412653,2938.5,2936.7,1.35027071]
[1767033410580,0.00412653,2938.5,2937.1,1.35027071]
[1767033411573,0.00412653,2938.5,2937.1,1.52068071]
[1767033412885,0.00412653,2938.5,2937.1,6.44368071]
[1767033415087,1.35027071,2937.9,2936.8,4.27129706]
[1767033415280,1.35027071,2937.9,2936.4,0.17045]
[1767033415478,0.17035,2938.2,2936.4,0.17045]
[1767033423085,0.17036,2938.0,2936.3,4.92817925]
[1767033423286,0.17037,2937.9,2936.3,0.00517925]
[1767033428187,0.17037,2937.8,2936.3,0.00517925]
[1767033429181,0.17038,2937.7,2936.3,0.00517925]
[1767033433498,0.17039,2937.6,2936.3,0.00517925]
[1767033436500,1.52120604,2937.6,2936.3,0.00517925]
[1767033445104,40.8,2938.3,2936.3,0.00517925]
[1767033445306,1.52116604,2938.2,2936.9,1.35081604]
[1767033456012,0.17035,2938.2,2936.9,1.35081604]
[1767033456209,0.17035,2938.2,2937.1,1.35081604]
[1767033459912,0.17035,2938.2,2936.9,1.35081604]
[1767033462322,0.00412653,2938.5,2937.5,1.35081604]
[1767033462524,0.00412653,2938.5,2937.7,1.35081604]
[1767033462824,0.00412653,2938.5,2937.8,0.0051063]
[1767033470331,1.35081604,2938.3,2936.8,1.35081604]
[1767033470726,1.52527257,2938.5,2937.0,1.35081604]
[1767033471028,1.52527257,2938.5,2937.2,1.35081604]
[1767033471220,0.0051063,2938.1,2937.6,0.0051063]
[1767033485637,0.0051063,2938.1,2937.6,6.3e-06]
[1767033505658,1.35511421,2938.1,2936.3,0.00416712]
[1767033505858,0.17037,2937.8,2936.3,0.00416712]
[1767033506659,0.17037,2937.8,2936.8,0.0051063]
[1767033507964,0.17038,2937.7,2936.8,0.0051063]
[1767033513059,1.35511421,2938.1,2936.3,0.00416712]
[1767033514069,1.35511421,2938.1,2936.9,0.0051063]
[1767033514468,0.17039,2937.5,2936.9,0.0051063]
[1767033518182,1.52041791,2937.3,2936.3,0.00416712]
[1767033518373,0.17041,2937.3,2936.3,0.00416712]
[1767033519173,0.17041,2937.3,2936.5,0.0051063]
[1767033523389,0.17041,2937.2,2936.3,0.00416712]
[1767033524581,0.17041,2937.2,2936.5,0.0051063]
[1767033527096,0.17041,2937.2,2936.3,0.00416712]
[1767033528096,0.17041,2937.2,2936.5,0.00340418]
[1767033530098,0.0051063,2938.1,2934.9,0.17054]
[1767033530099,0.17043,2936.8,2934.9,0.17054]
[1767033530398,0.17043,2936.8,2935.0,6.07673642]
[1767033530994,0.17043,2936.8,2935.1,1.35000791]
[1767033531198,0.0051063,2936.2,2935.1,1.35000791]
[1767033531406,0.00790903,2936.2,2935.1,1.35000791]
[1767033535213,1.35791694,2936.2,2935.0,0.00305089]
[1767033535499,0.00790903,2936.2,2935.0,0.00305089]
[1767033536299,0.17048,2936.1,2935.0,0.00305089]
[1767033536902,0.17048,2936.0,2935.0,0.00305089]
[1767033537596,0.00790903,2936.2,2933.7,4.27129706]
[1767033537597,1.35000791,2935.9,2933.7,4.27129706]
[1767033537796,1.35000791,2935.9,2933.5,1.35000791]
[1767033537797,0.17051,2935.6,2933.8,4.897]
[1767033538603,0.17051,2935.6,2933.8,0.00278959]
[1767033538803,0.17051,2935.6,2933.9,4.897]
[1767033539696,0.17051,2935.6,2933.8,0.00278959]
[1767033539899,0.17051,2935.5,2933.9,4.897]
[1767033540799,0.17052,2935.3,2933.8,0.00278959]
[1767033541003,0.17052,2935.3,2933.9,4.897]
[1767033545899,0.17052,2935.3,2933.9,6.24700791]
[1767033547011,0.17052,2935.3,2933.9,1.35000791]
[1767033547211,0.17052,2935.3,2933.9,4.897]
[1767033547712,0.17052,2935.3,2933.9,6.24700791]
[1767033549003,0.17054,2935.0,2933.8,0.00278959]
[1767033549199,0.0051063,2934.7,2933.8,0.00278959]
[1767033552114,0.17059,2934.1,2932.6,4.896]
[1767033552316,1.35000791,2934.5,2932.7,4.896]
[1767033552516,0.1706,2933.9,2932.7,4.896]
[1767033552915,0.17395008,2933.9,2932.7,4.89992441]
[1767033553813,0.17395008,2933.9,2932.9,1.35000791]
[1767033554212,0.17395008,2933.9,2932.7,0.00392441]
[1767033555007,0.17395008,2933.9,2932.8,4.896]
[1767033555611,0.17395008,2933.9,2932.7,0.00392441]
[1767033556106,0.17395008,2933.9,2932.7,4.18292441]
[1767033557017,0.17395008,2933.9,2932.8,4.895]
[1767033557814,0.00335008,2933.9,2932.8,4.895]
[1767033558718,0.17057,2934.5,2932.8,4.895]
[1767033558916,0.17057,2934.5,2932.9,4.895]
[1767033559725,0.17421878,2934.5,2932.9,4.895]
[1767033560220,0.17421878,2934.5,2932.7,0.00392441]
[1767033560413,0.17421878,2934.5,2932.8,4.895]
[1767033560613,1.3538148,2934.4,2933.0,1.3538148]
[1767033560815,0.17421878,2934.5,2932.9,4.895]
[1767033560816,0.17421878,2934.5,2933.2,1.3538148]
[1767033562521,0.17421878,2934.5,2932.9,4.895]
[1767033563419,0.00364878,2934.5,2933.0,6.36674915]
[1767033564522,0.00364878,2934.5,2933.1,0.17065]
[1767033566718,0.00364878,2934.5,2933.2,4.898]
[1767033567022,0.00364878,2934.5,2933.1,0.17065]
[1767033567325,0.00364878,2934.5,2933.3,4.898]
[1767033567926,0.00364878,2934.5,2933.1,0.17065]
[1767033568128,0.00364878,2934.5,2933.4,4.898]
[1767033569025,0.00364878,2934.5,2933.1,0.17065]
[1767033569227,0.00364878,2934.5,2933.2,4.898]
[1767033572018,1.8339769,2935.8,2933.2,4.898]
[1767033572223,0.1705,2935.6,2933.6,0.17061]
[1767033572525,0.99886951,2935.5,2933.7,4.62416732]
[1767033572922,0.99886951,2935.5,2933.7,0.17061]
[1767033573225,0.0051063,2934.9,2934.3,0.0051063]
[1767033573425,0.0051063,2934.9,2934.4,4.901]
[1767033573625,0.00362812,2935.5,2934.4,4.901]
[1767033573827,0.17413812,2935.5,2934.3,0.0051063]
[1767033574225,0.17413812,2935.5,2934.4,3.023]
[1767033574621,0.0051063,2935.2,2934.4,3.023]
[1767033575132,0.0051063,2935.2,2934.5,4.9]
[1767033577534,0.0051063,2935.2,2934.5,4.899]
[1767033584130,6.3e-06,2935.2,2934.5,4.899]
[1767033584336,0.17413812,2935.5,2934.5,4.899]
[1767033584536,0.17413812,2935.5,2934.6,1.35232283]
[1767033585137,1.52283283,2935.4,2934.3,0.0051063]
[1767033585343,0.0051063,2935.1,2934.4,4.803]
[1767033587337,0.0051063,2935.1,2934.5,4.897]
[1767033597347,0.0051063,2935.1,2934.6,4.895]
[1767033600854,0.17051,2935.4,2934.6,4.895]
[1767033601356,0.00362812,2935.5,2934.6,4.895]
[1767033601953,0.0051063,2935.3,2934.6,4.895]
[1767033602153,0.17049,2935.9,2934.6,4.895]
[1767033602360,0.17049,2935.9,2934.9,1.35232283]
[1767033603057,0.17045,2936.5,2935.1,1.35232283]
[1767033603249,0.17046,2936.3,2935.2,4.894]
[1767033604053,0.00340418,2936.0,2935.5,0.0051063]
[1767033604261,0.00776196,2936.0,2935.5,0.0051063]
[1767033604747,1.35232283,2935.8,2934.9,0.00290149]
[1767033604956,1.35232283,2935.4,2934.9,0.00290149]
[1767033605260,1.35232283,2935.6,2934.9,0.00290149]
[1767033605959,0.1705,2935.7,2935.0,0.0051063]
[1767033606167,0.00776196,2936.0,2935.0,0.0051063]
[1767033607061,1.35232283,2935.9,2935.1,3.671]
[1767033607465,0.1705,2935.7,2935.1,3.671]
[1767033611270,0.1705,2935.7,2935.0,0.0051063]
[1767033613170,1.35232283,2935.2,2934.1,4.891]
[1767033613557,1.35232283,2935.5,2934.1,4.891]
[1767033613968,1.52283283,2935.5,2934.5,0.0051063]
[1767033614159,0.17051,2935.4,2934.5,0.0051063]
[1767033616170,1.52283283,2935.4,2934.5,0.0051063]
[1767033617667,1.52285283,2935.2,2934.5,0.0051063]
[1767033618169,0.17053,2935.2,2934.5,0.0051063]
[1767033641702,0.1705,2935.7,2934.5,0.0051063]
[1767033642598,0.1705,2935.6,2934.5,0.0051063]
[1767033645002,0.17051,2935.5,2934.5,0.0051063]
[1767033675614,0.17051,2935.4,2934.5,0.0051063]
[1767033686532,1.35276892,2934.6,2934.1,3.369e-05]
[1767033686833,1.35276892,2934.3,2932.5,4.44197706]
[1767033687032,1.35276892,2934.3,2932.7,1.35276892]
[1767033687433,0.0051063,2933.8,2933.2,0.0051063]
[1767033687730,0.00822541,2933.8,2933.2,4.88180641]
[1767033688329,0.00822541,2933.8,2933.2,0.00780641]
[1767033688532,0.00822541,2933.8,2933.2,6.41e-06]
[1767033688731,0.00822541,2933.8,2933.1,4.874]
[1767033689333,0.00822541,2933.8,2932.7,1.35276892]
[1767033689632,0.00822541,2933.8,2933.0,1.35787522]
[1767033690221,0.00822541,2933.8,2933.0,0.0051063]
[1767033695334,1.35276892,2933.6,2932.4,4.875]
[1767033695926,0.17061,2933.7,2932.4,4.875]
[1767033696330,0.17061,2933.7,2932.8,0.0051063]
[1767033697937,0.17062,2933.6,2932.8,0.0051063]
[1767033698128,1.52338892,2933.6,2932.8,0.0051063]
[1767033698328,0.17062,2933.5,2932.8,0.0051063]
[1767033700038,0.17062,2933.5,2932.8,6.3e-06]
[1767033700239,1.52338892,2933.5,2932.4,0.00408401]
[1767033700434,0.17062,2933.5,2932.4,4.87808401]
[1767033700835,1.35276892,2933.2,2932.4,0.00408401]
[1767033701028,0.17066,2932.9,2931.9,4.874]
[1767033701336,1.35276892,2932.8,2931.9,4.874]
[1767033701637,0.17067,2932.7,2931.6,0.76207667]
[1767033701828,0.17067,2932.7,2931.7,4.874]
[1767033702030,0.17067,2932.7,2931.7,4.87674469]
[1767033702539,0.17067,2932.7,2931.7,6.22951361]
[1767033703242,0.17067,2932.7,2932.0,1.35276892]
[1767033704034,0.17064,2933.3,2932.0,1.35276892]
[1767033704440,0.17064,2933.3,2932.2,1.35276892]
[1767033704837,0.17064,2933.2,2931.7,0.00274469]
[1767033705142,1.35276892,2932.9,2931.8,4.874]
[1767033705329,0.17067,2932.8,2931.7,1.35551361]
[1767033705529,0.17067,2932.7,2931.8,4.874]
[1767033705834,0.17067,2932.7,2931.7,0.00274469]
[1767033706048,0.17067,2932.7,2931.8,4.874]
[1767033707037,0.17067,2932.7,2931.7,0.00274469]
[1767033707239,0.17067,2932.7,2931.7,4.87774469]
[1767033707937,0.17067,2932.7,2931.7,6.23051361]
[1767033708141,0.17067,2932.7,2931.7,1.35551361]
[1767033709642,0.17067,2932.7,2931.9,1.35276892]
[1767033710145,0.17067,2932.7,2931.9,4.876]
[1767033710343,1.35276892,2932.4,2931.7,0.00274469]
[1767033711051,1.35276892,2933.0,2930.4,1.35276892]
[1767033711240,1.35276892,2933.0,2929.7,4.59559563]
[1767033711241,1.35276892,2931.8,2930.2,1.35276892]
[1767033711443,1.35276892,2931.6,2930.6,2.495]
[1767033711747,0.17072,2931.8,2930.0,1.35276892]
[1767033712048,0.17358354,2931.8,2930.8,1.35276892]
[1767033712648,0.17358354,2931.8,2930.6,1.35276892]
[1767033712942,0.17358354,2931.8,2930.7,4.876]
[1767033713133,0.17358354,2931.8,2930.2,0.17081]
[1767033713335,0.17358354,2931.8,2930.3,4.876]
[1767033713539,0.00286354,2931.8,2930.3,5.04681]
[1767033713746,0.00286354,2931.8,2930.3,9.58245096]
[1767033714247,0.00286354,2931.8,2930.8,1.35276892]
[1767033714441,0.17073,2931.7,2930.0,0.00405589]
[1767033714643,1.35276892,2931.6,2930.3,1.35276892]
[1767033715143,1.35276892,2931.6,2930.4,4.876]
[1767033715541,1.35276892,2931.6,2930.0,0.00405589]
[1767033715542,0.17078,2930.9,2930.0,0.00405589]
[1767033715735,1.35276892,2930.8,2930.0,0.00405589]
[1767033715939,0.17078,2930.9,2930.0,0.00405589]
[1767033716742,1.35276892,2930.8,2930.0,0.00405589]
[1767033716946,0.17078,2930.9,2930.0,0.00405589]
[1767033717744,0.17074,2931.5,2930.3,1.35276892]
[1767033717948,1.35276892,2931.1,2930.0,0.00405589]
[1767033718146,0.17076,2931.2,2930.0,0.00405589]
[1767033718751,0.17076,2931.2,2930.0,1.35682481]
[1767033720157,1.35276892,2930.8,2929.3,6.22876892]
[1767033720350,0.00511518,2930.3,2929.5,1.35276892]
[1767033720553,0.17077,2931.0,2930.1,1.35276892]
[1767033721061,0.17077,2931.0,2930.1,0.00431437]
[1767033721549,0.00511518,2930.8,2930.3,0.00511518]
[1767033724257,0.00511518,2930.8,2930.1,0.00431437]
[1767033724460,1.35276892,2930.4,2929.2,0.258]
[1767033724660,1.52355892,2930.7,2929.3,6.22876892]
[1767033724958,0.00511518,2930.8,2929.9,1.35276892]
[1767033725162,0.00511518,2930.8,2930.1,1.35276892]
[1767033725377,0.00511518,2930.8,2930.1,0.00254194]
[1767033725861,0.00511518,2930.8,2929.3,0.17087]
[1767033725862,1.35276892,2930.6,2929.3,1.52363892]
[1767033726064,1.3578841,2930.8,2929.4,2.493]
[1767033726262,0.00511518,2930.8,2929.5,4.876]
[1767033726853,0.00511518,2930.8,2929.5,4.87849235]
[1767033727249,0.00511518,2930.8,2929.8,1.35276892]
[1767033728357,0.00511518,2930.8,2930.0,1.35276892]
[1767033728660,0.00511518,2930.8,2929.9,1.35276892]
[1767033729654,0.00511518,2930.8,2930.1,1.35276892]
[1767033729854,0.17075,2931.3,2930.3,1.35276892]
[1767033730052,0.17075,2931.3,2930.4,4.875]
[1767033730257,0.00286354,2931.8,2930.4,4.875]
[1767033730459,1.35276892,2931.6,2930.3,1.35276892]
[1767033730764,1.35276892,2931.2,2929.8,1.35276892]
[1767033730959,0.00511518,2930.8,2930.2,0.00511518]
[1767033741071,0.17076,2931.2,2930.2,0.00511518]
[1767033741271,1.22195372,2931.7,2930.5,1.35276892]
[1767033741470,1.0005946,2931.6,2930.5,1.35276892]
[1767033741667,1.0005946,2931.5,2930.5,1.35276892]
[1767033741862,0.17073,2931.7,2930.7,1.35276892]
[1767033742060,0.00511518,2931.5,2930.8,4.874]
[1767033742967,0.00286354,2931.8,2930.8,4.874]
[1767033743264,0.00286354,2931.8,2930.9,4.874]
[1767033744070,0.00511518,2931.6,2930.9,4.874]
[1767033744371,0.17071,2932.1,2930.9,4.874]
[1767033745373,0.00511518,2931.8,2930.7,1.35595062]
[1767033745574,0.00511518,2931.8,2931.0,4.873]
[1767033747374,0.17498194,2932.1,2931.0,4.873]
[1767033748380,0.00511518,2931.8,2930.5,0.17079]
[1767033748678,0.00511518,2931.8,2930.6,4.873]
[1767033750571,0.00511518,2931.8,2930.5,0.17079]
[1767033750777,0.00511518,2931.8,2930.7,4.872]
[1767033756295,0.00511518,2931.8,2930.8,1.35595062]
[1767033756493,0.17067,2932.8,2931.2,1.35595062]
[1767033756697,8.881,2933.7,2931.2,1.35595062]
[1767033756698,0.17067,2932.7,2931.3,4.871]
[1767033756894,0.17068,2932.6,2930.8,1.52673062]
[1767033757090,10.10295372,2933.7,2930.9,4.871]
[1767033757091,0.17068,2932.5,2930.9,4.871]
[1767033757491,0.0033805,2932.0,2931.4,0.00511518]
[1767033757990,0.17381516,2932.5,2931.4,0.00511518]
[1767033759498,0.17381516,2932.5,2931.5,4.87]
[1767033760090,0.00313516,2932.5,2931.5,4.87]
[1767033760290,0.00313516,2932.5,2931.6,1.35595062]
[1767033760491,0.00313516,2932.5,2931.6,1.35957419]
[1767033760690,0.00313516,2932.5,2931.6,0.00362357]
[1767033762296,0.00313516,2932.5,2931.7,4.87]
[1767033765601,0.00313516,2932.5,2931.6,0.00362357]
[1767033765802,0.00313516,2932.5,2931.7,4.869]
[1767033769005,0.17068,2932.6,2931.7,4.869]
[1767033769201,0.17064,2933.2,2931.7,4.869]
[1767033769700,0.17064,2933.2,2931.7,5.03973]
[1767033769901,0.17064,2933.2,2932.0,1.35595062]
[1767033770098,0.1741643,2933.2,2932.0,1.35595062]
[1767033771399,2.43e-05,2933.2,2932.0,1.35595062]
[1767033773302,2.43e-05,2933.2,2931.8,0.17072]
[1767033773303,2.43e-05,2933.2,2932.1,4.867]
[1767033779515,2.43e-05,2933.2,2932.2,4.865]
[1767033780706,0.17062,2933.6,2932.4,1.35595062]
[1767033781815,0.17485837,2933.6,2932.4,1.35595062]
[1767033782321,0.17485837,2933.6,2931.6,4.27492063]
[1767033782514,0.17485837,2933.6,2932.1,0.1707]
[1767033783613,0.17062,2933.5,2932.2,4.864]
[1767033784816,0.17062,2933.5,2931.9,1.35595062]
[1767033785017,0.17062,2933.5,2932.0,4.864]
[1767033785914,0.17064,2933.3,2931.6,1.53030419]
[1767033786118,1.35595062,2933.5,2931.6,0.00362357]
[1767033786317,1.35595062,2933.1,2931.7,4.863]
[1767033787217,0.17066,2933.0,2931.7,4.863]
[1767033788723,0.17066,2932.9,2931.6,0.00362357]
[1767033788924,0.17068,2932.6,2931.6,0.00362357]
[1767033796832,0.17068,2932.5,2931.6,0.00362357]
[1767033799637,0.17066,2933.0,2931.6,0.00362357]
[1767033800229,0.17067,2932.8,2931.6,0.00362357]
[1767033809443,0.17067,2932.8,2931.8,1.35507565]
[1767033815039,40.80423837,2933.6,2932.2,1.35507565]
[1767033815040,0.17063,2933.4,2932.2,1.35507565]
[1767033818047,0.17063,2933.4,2932.4,1.35507565]
[1767033818253,0.17063,2933.4,2932.0,1.35507565]
[1767033818254,0.00423837,2933.6,2932.6,1.35507565]
[1767033819356,0.00423837,2933.6,2932.8,1.35507565]
[1767033819552,0.1706,2934.0,2932.9,0.00511518]
[1767033820754,0.17389738,2934.0,2932.9,0.00511518]
[1767033824952,0.17389738,2934.0,2933.0,1.35507565]
[1767033829158,0.17389738,2934.0,2933.2,1.35507565]
[1767033830062,0.17389738,2934.0,2933.0,1.35507565]
[1767033830255,1.35507565,2935.0,2933.0,1.35507565]
[1767033830256,0.17056,2934.6,2933.9,1.35507565]
[1767033830467,0.17056,2934.6,2933.5,1.35507565]
[1767033831360,0.17492791,2934.6,2933.5,1.35830181]
[1767033831967,1.35507565,2934.5,2933.5,0.00322616]
[1767033832366,0.17492791,2934.6,2933.5,0.00322616]
[1767033832572,1.53000356,2934.6,2933.5,0.00322616]
[1767033838069,0.17492791,2934.6,2933.5,0.00322616]
[1767033840567,0.17058,2934.3,2933.5,0.00322616]
[1767033840759,1.35507565,2934.0,2932.9,0.00511518]
[1767033841770,1.35507565,2934.0,2932.9,0.0075897]
[1767033841970,0.17059,2934.1,2932.9,0.0075897]
[1767033842165,0.17059,2934.1,2933.2,1.35507565]
[1767033842672,0.17059,2934.1,2933.0,1.35507565]
[1767033843173,1.52566565,2934.1,2932.9,0.0075897]
[1767033844073,1.52568565,2933.7,2932.9,0.0075897]
[1767033844279,1.35507565,2933.4,2932.1,6.20207565]
[1767033844468,1.35507565,2933.6,2932.3,1.35507565]
[1767033844772,0.17061,2933.7,2932.3,1.35507565]
[1767033844974,0.17061,2933.7,2932.6,1.35507565]
[1767033845176,0.00511518,2933.4,2932.9,0.00511518]
[1767033852678,0.00511518,2933.4,2932.9,1.518e-05]
[1767033853779,0.00511518,2933.4,2932.9,1.35509083]
[1767033854079,0.17061,2933.7,2932.9,1.35509083]
[1767033854080,0.17061,2933.7,2932.9,1.518e-05]
[1767033854977,0.0051,2933.6,2932.9,1.518e-05]
[1767033858795,1.35507565,2933.0,2931.7,4.27129706]
[1767033859082,1.35507565,2933.0,2931.6,1.35507565]
[1767033859276,0.17065,2933.1,2931.8,1.35507565]
[1767033859477,1.35507565,2933.0,2931.6,1.35507565]
[1767033859674,1.35507565,2933.2,2931.8,1.35507565]
[1767033859877,1.35507565,2933.2,2932.2,0.00511518]
[1767033860477,0.17066,2932.9,2932.2,0.00511518]
[1767033863283,0.17066,2932.9,2932.2,1.36019083]
[1767033864589,0.17066,2932.9,2932.2,0.00511518]
[1767033883603,0.17063,2933.5,2932.2,0.00511518]
[1767033883806,0.17063,2933.5,2932.2,1.35982623]
[1767033884601,0.17063,2933.4,2932.2,0.00511518]
[1767033889315,0.17064,2933.3,2932.2,0.00511518]
[1767033892022,0.0051,2933.6,2932.2,0.00511518]
[1767033892313,0.17065,2933.0,2932.2,0.00511518]
[1767033900420,0.17066,2932.9,2932.2,0.00511518]
[1767033900617,0.17068,2932.5,2931.2,4.27129706]
[1767033900922,0.17069,2932.4,2930.9,14.15118271]
[1767033901622,0.17333849,2932.4,2930.9,14.15418599]
[1767033901822,0.00511518,2931.9,2931.4,0.00511518]
[1767033903520,0.00511518,2931.9,2930.9,0.00300328]
[1767033904522,0.00511518,2931.9,2931.1,0.00511518]
[1767033906322,0.00511518,2931.9,2930.9,0.00300328]
[1767033907526,0.00511518,2931.9,2931.1,0.00511518]
[1767033909222,0.17073,2931.7,2930.9,3.28e-06]
[1767033909524,0.17074,2931.5,2930.9,3.28e-06]
[1767033909726,0.17074,2931.5,2930.3,4.84]
[1767033910120,0.17074,2931.5,2930.6,0.00511518]
[1767033910326,0.17075,2931.4,2930.6,0.00511518]
[1767033910530,1.35471105,2931.8,2929.0,1.52559105]
[1767033910726,0.17076,2931.1,2929.5,4.84]
[1767033911927,0.17076,2931.1,2930.0,0.0034101]
[1767033912724,1.35471105,2931.8,2930.0,0.0034101]
[1767033913329,0.17077,2931.1,2930.0,0.0034101]
[1767033913532,1.35471105,2931.8,2930.0,0.0034101]
[1767033914528,0.17076,2931.2,2930.0,0.0034101]
[1767033917331,0.17077,2931.1,2930.0,0.0034101]
[1767033919937,0.17077,2931.1,2930.1,1.35471105]
[1767033920438,0.17073,2931.7,2930.1,1.35471105]
[1767033924532,0.17073,2931.7,2930.6,1.35601956]
[1767033925931,0.17073,2931.7,2930.8,1.35601956]
[1767033926152,0.17073,2931.7,2930.0,1.53025966]
[1767033926153,0.17073,2931.7,2931.0,1.35601956]
[1767033926342,0.17073,2931.7,2930.8,1.35601956]
[1767033931148,0.17073,2931.7,2930.9,1.35601956]
[1767033932247,0.00511518,2931.9,2931.1,1.35601956]
[1767033934351,0.00511518,2931.9,2930.4,4.828]
[1767033934553,0.00511518,2931.9,2930.9,1.35601956]
[1767033935048,0.00511518,2931.9,2930.7,1.35601956]
[1767033935948,0.00511518,2931.9,2930.9,1.35601956]
[1767033936157,0.00511518,2931.9,2931.1,1.35601956]
[1767033939753,0.00511518,2931.9,2930.9,1.35601956]
[1767033943961,0.17583518,2931.9,2930.7,1.35601956]
[1767033944148,1.36113474,2931.9,2930.5,1.35601956]
[1767033945458,0.17073,2931.7,2930.5,1.35601956]
[1767033946254,0.17073,2931.7,2930.7,1.35601956]
[1767033946461,0.17073,2931.7,2930.9,1.35601956]
[1767033953674,0.17073,2931.7,2930.7,1.35601956]
[1767033958969,0.17073,2931.6,2930.3,4.834]
[1767033959163,1.35601956,2931.5,2930.3,4.834]
[1767033959865,1.35601956,2931.8,2930.3,4.834]
[1767033960664,0.17075,2931.4,2930.3,4.834]
[1767033961269,1.52676956,2931.3,2930.0,4.8354101]
[1767033961470,0.17075,2931.3,2930.1,1.35601956]
[1767033963067,0.17072,2931.8,2930.3,1.35601956]
[1767033963274,0.17073,2931.7,2930.6,1.35601956]
[1767033967675,0.17073,2931.7,2930.9,1.35601956]
[1767033967974,0.00511518,2931.9,2931.2,1.35601956]
[1767033968576,0.00511518,2931.9,2931.0,1.35601956]
[1767033972581,0.1707,2932.2,2931.2,1.35601956]
[1767033973484,1.518e-05,2932.0,2931.2,1.35601956]
[1767033974689,1.518e-05,2932.0,2930.8,4.831]
[1767033974896,1.518e-05,2932.0,2931.1,1.35601956]
[1767033975587,1.35603474,2932.0,2930.8,4.829]
[1767033975983,1.35603474,2932.0,2930.7,1.35601956]
[1767033976189,1.518e-05,2932.0,2930.8,4.829]
[1767033977996,1.518e-05,2932.0,2931.1,1.35601956]
[1767033978593,1.518e-05,2932.0,2931.3,1.35601956]
[1767033978792,1.518e-05,2932.0,2931.3,1.35917434]
[1767033978998,1.518e-05,2932.0,2931.3,0.00315478]
[1767033980294,0.17072518,2932.0,2931.3,0.00315478]
[1767033980596,1.52673956,2931.9,2931.3,0.00315478]
[1767033981002,0.17072,2931.8,2931.3,0.00315478]
[1767033984496,1.518e-05,2932.0,2931.3,0.00315478]
[1767033984701,0.17073,2931.7,2930.2,0.17082]
[1767033984903,0.17073,2931.7,2930.3,4.529]
[1767033985703,0.17073,2931.7,2930.3,4.53322919]
[1767033993208,0.17073,2931.7,2930.3,0.00422919]
[1767033993499,0.17073,2931.7,2930.4,4.826]
[1767033996195,0.17074,2931.5,2930.3,0.00422919]
[1767033996810,0.17075,2931.3,2930.3,0.00422919]
[1767034005406,1.35597118,2932.0,2930.3,0.00422919]
[1767034005714,0.17078,2930.9,2930.0,0.0034101]
[1767034006608,0.17078,2930.9,2930.0,0.0065797]
[1767034023431,0.17078,2930.8,2930.0,0.0065797]
[1767034023737,0.17078,2930.8,2929.4,4.82]
[1767034024741,0.00511518,2930.4,2929.9,0.00511518]